bitfinex-derivatives/quotes_SOLF0:USTF0_20250901
["timestamp","ask_amount","ask_price","bid_price","bid_amount"]
[1756688899612,129.93392407,200.7,200.56,3.53392407]
[1756688899810,129.93392407,200.7,200.57,7.46]
[1756688900212,129.87392407,200.7,200.57,7.46]
[1756688901712,129.87392407,200.7,200.52,4.13971822]
[1756688901713,3.53392407,200.63,200.52,7.46]
[1756688901917,126.36,200.62,200.52,7.46]
[1756688902323,3.53392407,200.63,200.52,7.46]
[1756688902514,53.74,200.62,200.52,7.46]
[1756688902714,104.58,200.64,200.52,7.46]
[1756688902914,126.5,200.64,200.52,7.46]
[1756688903116,74.53514376,200.78,200.52,7.46]
[1756688903117,74.53514376,200.78,200.61,7.46]
[1756688903318,126.52,200.75,200.61,7.46]
[1756688903918,3.53392407,200.72,200.61,7.46]
[1756688904120,3.53392407,200.72,200.54,3.53392407]
[1756688904321,3.53392407,200.69,200.55,7.46]
[1756688904921,126.52,200.75,200.55,7.46]
[1756688905121,3.53392407,200.71,200.55,7.46]
[1756688905520,3.53392407,200.68,200.55,7.46]
[1756688905720,141.48,200.75,200.5,116.4384395]
[1756688905721,3.53392407,200.65,200.51,7.46]
[1756688905920,25.8,200.64,200.51,7.46]
[1756688907221,3.53392407,200.67,200.51,10.99392407]
[1756688907414,3.4,200.67,200.54,3.53392407]
[1756688907614,3.4,200.67,200.55,7.46]
[1756688908426,6.93392407,200.67,200.55,7.46]
[1756688909522,6.93392407,200.67,200.51,7.46]
[1756688909523,3.53392407,200.64,200.51,7.46]
[1756688911828,3.53392407,200.61,200.51,7.46]
[1756688912220,3.53392407,200.61,200.5,108.76479721]
[1756688915728,3.53392407,200.58,200.47,7.46]
[1756688916036,42.32,200.57,200.47,7.46]
[1756688917127,3.53392407,200.58,200.47,7.46]
[1756688917333,83.92,200.56,200.47,7.46]
[1756688919133,119.1,200.56,200.47,7.46]
[1756688921036,126.66,200.56,200.47,7.46]
[1756688923237,473.94,200.68,200.47,7.46]
[1756688923238,458.98,200.68,200.47,7.46]
[1756688923537,3.53392407,200.63,200.49,3.53392407]
[1756688923742,3.53392407,200.63,200.5,7.74]
[1756688924039,54.72,200.62,200.5,7.74]
[1756688925532,92.46,200.61,200.5,7.74]
[1756688927145,92.46,200.61,200.42,109.62459091]
[1756688927146,3.53392407,200.59,200.43,7.74]
[1756688927443,3.53392407,200.56,200.43,7.74]
[1756688928947,3.53392407,200.59,200.45,7.74]
[1756688929249,40.64,200.58,200.48,7.74]
[1756688929435,3.53392407,200.62,200.48,7.74]
[1756688929637,42.62,200.61,200.48,7.74]
[1756688930343,81.34,200.61,200.5,3.53392407]
[1756688930643,81.34,200.61,200.54,7.74]
[1756688932343,3.53392407,200.65,200.54,7.74]
[1756688932645,126.74,200.64,200.54,7.74]
[1756688934143,3.53392407,200.62,200.49,7.74]
[1756688934346,3.53392407,200.59,200.49,7.74]
[1756688936946,56.44,200.58,200.49,7.74]
[1756688938444,3.53392407,200.56,200.44,7.74]
[1756688940048,4.36,200.55,200.44,7.74]
[1756688942246,3.53392407,200.53,200.44,7.74]
[1756688943246,3.53392407,200.53,200.39,4.12636621]
[1756688943441,3.53392407,200.53,200.39,11.86636621]
[1756688943947,3.53392407,200.5,200.39,7.74]
[1756688947451,3.53392407,200.47,200.39,7.74]
[1756688947748,41.86,200.46,200.35,7.74]
[1756688948051,3.53392407,200.44,200.35,7.74]
[1756688950550,3.53392407,200.41,200.3,7.53]
[1756688951355,20.50163416,200.5,200.3,7.53]
[1756688951556,3.53392407,200.41,200.3,7.53]
[1756688951851,126.42,200.4,200.3,7.53]
[1756688952152,5.54163416,200.51,200.3,7.53]
[1756688952354,3.53392407,200.46,200.3,7.53]
[1756688952944,3.53392407,200.46,200.3,3.53392407]
[1756688953149,3.53392407,200.46,200.31,7.53]
[1756688953656,53.46,200.45,200.31,7.53]
[1756688953955,90.04,200.46,200.34,7.53]
[1756688954658,93.57392407,200.46,200.34,7.53]
[1756688954852,3.53392407,200.43,200.34,7.53]
[1756688955947,126.58,200.42,200.34,7.53]
[1756688956945,126.58,200.41,200.34,7.53]
[1756688957150,126.54,200.41,200.34,7.53]
[1756688957355,126.52,200.41,200.34,7.53]
[1756688957554,3.53392407,200.43,200.34,7.53]
[1756688957755,126.5,200.41,200.34,7.53]
[1756688959056,126.5,200.41,200.27,7.53]
[1756688959254,3.53392407,200.37,200.27,7.53]
[1756688960651,124.0,200.49,200.27,7.53]
[1756688960957,3.53392407,200.4,200.27,7.53]
[1756688961252,126.46,200.39,200.27,7.53]
[1756688961855,123.54,200.4,200.27,7.53]
[1756688963260,127.07392407,200.4,200.27,7.53]
[1756688963463,3.53392407,200.37,200.27,7.53]
[1756688963660,14.96,200.5,200.27,7.53]
[1756688963853,3.53392407,200.43,200.28,7.53]
[1756688964058,21.99392407,200.43,200.28,7.53]
[1756688964857,14.96,200.52,200.28,7.53]
[1756688965051,335.18,200.54,200.34,7.53]
[1756688965258,3.53392407,200.5,200.34,7.53]
[1756688966552,3.53392407,200.47,200.34,7.53]
[1756688966756,3.53392407,200.44,200.34,7.53]
[1756688966950,57.14,200.43,200.34,7.53]
[1756688968960,92.5,200.47,200.35,7.53]
[1756688969556,3.53392407,200.52,200.31,4.12636621]
[1756688969853,126.88,200.51,200.37,7.53]
[1756688970053,3.53392407,200.49,200.37,7.53]
[1756688972262,3.53392407,200.46,200.33,7.53]
[1756688972756,3.53392407,200.43,200.33,7.53]
[1756688972957,58.82,200.42,200.33,7.53]
[1756688973663,3.53392407,200.4,200.28,7.53]
[1756688973864,58.82,200.42,200.28,7.53]
[1756688974159,3.53392407,200.4,200.28,7.53]
[1756688975360,3.46,200.39,200.28,7.53]
[1756688975559,3.53392407,200.43,200.28,7.53]
[1756688975762,3.78,200.42,200.28,7.53]
[1756688976066,3.53392407,200.43,200.28,7.53]
[1756688976257,7.08,200.42,200.28,7.53]
[1756688976659,7.08,200.42,200.22,117.19927932]
[1756688976660,3.53392407,200.46,200.31,7.53]
[1756688976862,0.86856686,200.48,200.31,7.53]
[1756688976863,10.2,200.45,200.31,7.53]
[1756688977159,0.86856686,200.48,200.34,7.53]
[1756688977360,0.86856686,200.48,200.37,7.53]
[1756688977361,48.32,200.48,200.37,7.53]
[1756688979165,3.53392407,200.51,200.37,7.53]
[1756688979364,0.86845849,200.53,200.4,7.59]
[1756688979664,6.84206841,200.59,200.43,7.59]
[1756688979962,2.44,200.58,200.43,7.59]
[1756688980553,2.44,200.58,200.44,4.56085022]
[1756688980755,3.53392407,200.56,200.45,4.56085022]
[1756688980965,3.53392407,200.53,200.46,4.56085022]
[1756688981166,3.53392407,200.53,200.47,4.56085022]
[1756688981363,3.53392407,200.53,200.48,4.56085022]
[1756688981664,3.53392407,200.53,200.41,7.59]
[1756688981665,3.53392407,200.53,200.49,4.56085022]
[1756688981860,3.53392407,200.53,200.41,7.59]
[1756688982074,3.53392407,200.5,200.42,4.56390205]
[1756688982266,7.26,200.49,200.43,4.56390205]
[1756688982461,7.26,200.49,200.44,4.56390205]
[1756688982665,7.26,200.49,200.45,4.56390205]
[1756688982967,7.26,200.49,200.46,4.56390205]
[1756688983156,7.26,200.49,200.47,4.56390205]
[1756688983362,7.26,200.49,200.48,4.56390205]
[1756688983963,7.76,200.49,200.36,7.59]
[1756688984160,3.53392407,200.47,200.36,7.59]
[1756688986366,3.53392407,200.47,200.28,5.50957784]
[1756688986367,3.53392407,200.44,200.3,4.12636621]
[1756688986671,3.53392407,200.41,200.31,7.59]
[1756688986872,46.02,200.4,200.31,7.59]
[1756688989075,46.02,200.4,200.26,5.50957784]
[1756688989076,46.02,200.4,200.27,4.12636621]
[1756688989278,3.53392407,200.38,200.26,11.71636621]
[1756688990072,47.76,200.37,200.26,11.71636621]
[1756688990480,5.54163416,200.45,200.27,7.59]
[1756688990680,3.53392407,200.39,200.27,11.71636621]
[1756688990878,3.53392407,200.39,200.27,7.59]
[1756688993079,3.53392407,200.36,200.27,7.59]
[1756688993384,10.36,200.35,200.27,7.59]
[1756688993583,10.36,200.35,200.23,7.59]
[1756688997079,3.53392407,200.33,200.23,7.59]
[1756688997285,10.36,200.35,200.23,7.59]
[1756688997479,5.54163416,200.42,200.23,7.59]
[1756688997674,3.53392407,200.36,200.23,7.59]
[1756688998284,8.42,200.35,200.23,7.59]
[1756688998780,5.54163416,200.44,200.25,3.53392407]
[1756688998982,3.53392407,200.42,200.26,7.59]
[1756688999286,3.53392407,200.39,200.26,7.59]
[1756689000582,3.53392407,200.36,200.26,7.59]
[1756689000785,3.53392407,200.35,200.26,7.59]
[1756689000984,20.42,200.34,200.26,7.59]
[1756689001481,20.42,200.34,200.21,7.59]
[1756689002684,3.53392407,200.32,200.21,7.59]
[1756689003086,3.53392407,200.35,200.21,7.59]
[1756689003288,50.9,200.34,200.21,7.59]
[1756689003486,3.53392407,200.35,200.21,7.59]
[1756689003689,48.16,200.34,200.21,7.59]
[1756689004884,3.53392407,200.35,200.21,7.59]
[1756689005088,47.8,200.35,200.25,3.53392407]
[1756689005387,47.8,200.35,200.26,7.59]
[1756689006587,339.03392407,200.37,200.26,7.59]
[1756689006588,127.5,200.34,200.26,7.59]
[1756689008591,131.03392407,200.34,200.26,7.59]
[1756689008792,131.03392407,200.34,200.18,7.99]
[1756689009592,3.53392407,200.34,200.18,7.99]
[1756689009793,45.14,200.33,200.18,7.99]
[1756689009993,96.38,200.32,200.21,7.99]
[1756689010596,127.5,200.34,200.22,7.99]
[1756689010892,335.5,200.37,200.25,7.99]
[1756689011195,127.54,200.44,200.34,7.99]
[1756689011787,127.54,200.44,200.35,4.52760745]
[1756689011996,127.54,200.44,200.36,4.52760745]
[1756689012198,127.54,200.44,200.37,4.52760745]
[1756689012399,127.54,200.44,200.38,4.52760745]
[1756689012600,127.54,200.44,200.39,4.52760745]
[1756689012907,339.09392407,200.51,200.4,4.52738437]
[1756689013195,127.58,200.5,200.41,4.52738437]
[1756689013402,127.58,200.5,200.42,4.52738437]
[1756689013600,127.58,200.5,200.43,4.52738437]
[1756689013795,3.53392407,200.45,200.34,7.99]
[1756689013997,127.58,200.5,200.35,4.52458236]
[1756689014194,3.53392407,200.45,200.36,4.52458236]
[1756689014400,3.53392407,200.45,200.37,4.52458236]
[1756689014602,3.53392407,200.45,200.34,7.99]
[1756689014802,3.53392407,200.45,200.35,4.52695538]
[1756689015003,3.53392407,200.45,200.36,4.52695538]
[1756689015306,49.12,200.44,200.37,4.52695538]
[1756689015604,49.12,200.44,200.38,4.52695538]
[1756689015794,49.12,200.44,200.39,4.52695538]
[1756689015997,3.53392407,200.42,200.4,4.52695538]
[1756689016197,3.53392407,200.42,200.3,7.99]
[1756689016394,49.12,200.44,200.3,7.99]
[1756689016395,3.53392407,200.39,200.31,4.52987172]
[1756689016598,3.53392407,200.39,200.32,4.52987172]
[1756689016805,76.9,200.39,200.33,12.51987172]
[1756689017004,76.9,200.39,200.29,3.53392407]
[1756689017005,76.9,200.39,200.34,4.52987172]
[1756689017204,76.9,200.39,200.35,12.51987172]
[1756689017504,76.9,200.39,200.36,4.52987172]
[1756689017705,76.9,200.39,200.37,4.52987172]
[1756689017902,76.9,200.39,200.38,4.52987172]
[1756689019503,80.93392407,200.39,200.29,7.99]
[1756689019705,80.43392407,200.39,200.3,4.5306431]
[1756689019902,80.43392407,200.39,200.31,4.5306431]
[1756689020098,80.43392407,200.39,200.32,4.5306431]
[1756689020405,80.43392407,200.39,200.33,4.5306431]
[1756689020604,3.53392407,200.39,200.34,4.5306431]
[1756689020801,3.53392407,200.39,200.35,4.5306431]
[1756689021002,3.53392407,200.39,200.29,7.99]
[1756689021003,48.02,200.38,200.36,4.5306431]
[1756689021309,48.02,200.38,200.37,4.5306431]
[1756689022505,48.52,200.38,200.29,7.99]
[1756689022709,48.02,200.38,200.3,4.57310265]
[1756689022911,48.02,200.38,200.29,7.99]
[1756689023112,54.34,200.37,200.29,7.99]
[1756689023407,3.53392407,200.4,200.29,7.99]
[1756689023606,38.86,200.39,200.29,7.99]
[1756689024605,54.7,200.38,200.29,7.99]
[1756689025513,3.53392407,200.37,200.23,7.99]
[1756689025709,3.53392407,200.34,200.23,7.99]
[1756689026612,28.68,200.33,200.23,7.99]
[1756689027206,34.1,200.33,200.23,7.99]
[1756689029619,3.53392407,200.31,200.2,12.1323686]
[1756689029807,3.53392407,200.31,200.2,7.99]
[1756689030812,37.38,200.31,200.21,7.99]
[1756689032715,40.91392407,200.31,200.19,4.1423686]
[1756689032915,40.91392407,200.31,200.18,4.1423686]
[1756689033320,41.56,200.3,200.19,7.99]
[1756689034514,3.53392407,200.31,200.19,7.99]
[1756689034716,5.54,200.31,200.2,7.99]
[1756689034920,9.07392407,200.31,200.2,7.99]
[1756689035217,3.53392407,200.28,200.2,7.99]
[1756689035415,3.53392407,200.28,200.15,12.1323686]
[1756689035919,3.53392407,200.25,200.15,7.99]
[1756689036322,3.53392407,200.26,200.15,7.99]
[1756689036519,47.48,200.26,200.15,7.99]
[1756689036722,51.01392407,200.26,200.15,7.99]
[1756689037719,3.53392407,200.26,200.15,7.99]
[1756689037919,49.48,200.25,200.15,7.99]
[1756689038518,3.53392407,200.26,200.15,7.99]
[1756689038719,49.16,200.25,200.15,7.99]
[1756689039025,3.53392407,200.26,200.15,7.99]
[1756689039411,49.14,200.25,200.15,7.99]
[1756689039612,3.53392407,200.23,200.09,7.9]
[1756689042026,3.53392407,200.14,200.05,4.1423686]
[1756689042221,3.53392407,200.14,200.04,7.9]
[1756689042222,57.06,200.13,200.04,7.9]
[1756689042425,57.06,200.13,200.0,7.9]
[1756689043318,3.53392407,200.11,200.0,7.9]
[1756689043729,109.76,200.1,200.0,7.9]
[1756689044726,128.3,200.1,200.0,7.9]
[1756689045728,3.53392407,200.09,200.0,7.9]
[1756689048023,3.53392407,200.09,199.93,7.9]
[1756689049034,64.58,200.08,199.93,7.9]
[1756689049331,3.53392407,200.09,199.93,7.9]
[1756689049530,85.6,200.08,199.93,7.9]
[1756689050636,105.5,200.08,199.93,7.9]
[1756689050932,124.32,200.08,199.96,7.9]
[1756689051128,127.85392407,200.09,199.96,7.9]
[1756689051326,128.12,200.08,199.96,7.9]
[1756689052736,3.53392407,200.09,199.96,7.9]
[1756689052928,48.28,200.08,199.96,7.9]
[1756689057336,3.53392407,200.07,199.96,7.9]
[1756689058636,3.53392407,200.04,199.88,7.9]
[1756689058837,3.53392407,200.01,199.88,7.9]
[1756689059834,9.6,200.0,199.88,7.9]
[1756689060733,29.92,200.14,199.88,7.9]
[1756689060934,3.53392407,200.03,199.88,7.9]
[1756689061236,128.12,200.02,199.9,7.9]
[1756689062037,3.53392407,200.03,199.9,7.9]
[1756689062234,3.53392407,200.11,199.96,7.9]
[1756689062434,3.36,200.1,199.96,7.9]
[1756689063438,3.53392407,200.11,199.96,7.9]
[1756689063640,60.26,200.1,199.96,7.9]
[1756689064031,76.94209884,200.16,199.98,3.53392407]
[1756689064238,76.94209884,200.16,199.99,7.9]
[1756689064239,3.53392407,200.14,199.99,7.9]
[1756689065240,76.94209884,200.16,200.01,3.53392407]
[1756689065436,128.14,200.15,200.02,7.9]
[1756689065633,339.19392407,200.17,199.92,3.53392407]
[1756689065634,335.66,200.17,200.05,7.9]
[1756689065836,463.8,200.17,200.05,7.9]
[1756689066538,335.66,200.17,200.05,7.9]
[1756689066932,335.66,200.17,200.08,7.9]
[1756689067140,128.1,200.2,200.11,7.9]
[1756689067337,3.53392407,200.26,200.11,7.9]
[1756689067537,46.8,200.26,200.13,3.53392407]
[1756689067733,46.8,200.26,200.14,7.9]
[1756689068132,50.33392407,200.26,200.14,7.9]
[1756689068733,3.53392407,200.26,200.14,7.9]
[1756689068945,97.03392407,200.26,200.14,7.9]
[1756689069145,93.5,200.26,200.14,7.9]
[1756689069336,335.98,200.29,200.14,7.9]
[1756689069542,128.2,200.28,200.14,7.9]
[1756689070041,335.98,200.29,200.19,3.53392407]
[1756689070347,128.2,200.34,200.23,7.96]
[1756689070545,128.16,200.34,200.23,7.96]
[1756689071043,128.16,200.34,200.09,4.09040835]
[1756689071249,128.16,200.34,200.07,62.0]
[1756689071250,128.16,200.34,200.19,7.96]
[1756689071446,128.16,200.34,200.21,3.53392407]
[1756689072753,128.16,200.34,200.19,11.49392407]
[1756689073247,3.53392407,200.33,200.19,7.96]
[1756689073657,128.16,200.34,200.19,7.96]
[1756689073850,128.18,200.33,200.19,7.96]
[1756689074050,128.18,200.33,200.21,3.53392407]
[1756689074246,3.53392407,200.39,200.22,7.96]
[1756689074648,54.58,200.38,200.24,3.53392407]
[1756689075049,335.92,200.41,200.25,7.96]
[1756689075252,128.2,200.4,200.27,3.53392407]
[1756689075751,3.53392407,200.39,200.25,7.96]
[1756689076145,128.2,200.4,200.21,11.49392407]
[1756689076146,3.53392407,200.36,200.21,11.49392407]
[1756689076348,3.53392407,200.36,200.21,7.96]
[1756689076548,3.53392407,200.33,200.21,7.96]
[1756689076750,64.72,200.32,200.21,7.96]
[1756689076953,335.92,200.41,200.21,7.96]
[1756689077157,3.53392407,200.36,200.21,7.96]
[1756689077359,62.56,200.35,200.21,11.49392407]
[1756689078255,335.92,200.41,200.09,4.09040835]
[1756689078256,3.53392407,200.32,200.1,7.96]
[1756689078450,3.53392407,200.29,200.14,7.96]
[1756689080661,3.53392407,200.26,200.09,11.49392407]
[1756689080867,3.53392407,200.23,200.09,11.49392407]
[1756689081161,9.1,200.22,200.09,7.96]
[1756689082862,9.1,200.22,200.01,57.54]
[1756689082863,339.23392407,200.27,200.13,7.96]
[1756689083069,55.42,200.26,200.13,7.96]
[1756689084965,55.42,200.26,200.15,3.53392407]
[1756689085662,55.42,200.26,200.13,7.96]
[1756689085865,55.42,200.26,200.13,11.49392407]
[1756689088865,335.7,200.27,200.13,11.49392407]
[1756689089167,128.18,200.26,200.13,11.49392407]
[1756689090968,128.02,200.25,200.13,11.49392407]
[1756689091762,335.7,200.27,200.13,3.53392407]
[1756689091957,128.02,200.26,200.14,7.96]
[1756689092566,128.02,200.26,200.16,3.53392407]
[1756689092864,335.7,200.27,200.16,3.53392407]
[1756689093165,335.7,200.27,200.19,3.53392407]
[1756689093362,127.9,200.26,200.19,3.53392407]
[1756689094860,127.9,200.26,200.2,7.96]
[1756689095462,3.53392407,200.35,200.2,7.96]
[1756689095672,127.84,200.34,200.23,7.96]
[1756689096570,339.25392407,200.38,200.23,7.96]
[1756689096763,127.84,200.37,200.23,7.96]
[1756689098966,127.66,200.36,200.25,3.53392407]
[1756689099271,127.66,200.36,200.26,7.38]
[1756689100969,335.72,200.38,200.26,7.38]
[1756689101177,127.56,200.37,200.26,7.38]
[1756689103174,127.56,200.37,200.23,3.53392407]
[1756689104174,127.56,200.37,200.23,10.91392407]
[1756689104579,127.48,200.36,200.24,7.38]
[1756689104776,127.44,200.35,200.24,7.38]
[1756689105372,127.44,200.35,200.26,3.53392407]
[1756689105573,335.72,200.38,200.27,7.38]
[1756689105770,127.44,200.37,200.27,7.38]
[1756689107679,127.44,200.37,200.24,3.53392407]
[1756689109478,127.36,200.36,200.27,10.91392407]
[1756689112083,127.36,200.36,200.28,2.22060157]
[1756689112578,127.36,200.36,200.27,2.22060157]
[1756689114679,127.0,200.35,200.3,2.22060157]
[1756689114885,127.0,200.35,200.31,7.38]
[1756689115276,335.72,200.38,200.3,9.60060157]
[1756689115477,127.04,200.37,200.33,2.22060157]
[1756689116075,127.04,200.37,200.3,10.93140445]
[1756689117182,462.7,200.38,200.3,10.93140445]
[1756689117486,126.98,200.38,200.3,10.93140445]
[1756689118882,3.55140445,200.46,200.3,10.93140445]
[1756689118883,126.94,200.39,200.3,10.93140445]
[1756689120183,5.54163416,200.48,200.33,3.55140445]
[1756689120484,53.88,200.47,200.37,7.38]
[1756689120687,53.88,200.46,200.36,3.55140445]
[1756689121083,53.88,200.46,200.33,10.93140445]
[1756689122886,53.88,200.46,200.29,117.03176291]
[1756689123082,3.55140445,200.45,200.3,3.55140445]
[1756689124690,3.55140445,200.42,200.29,109.65176291]
[1756689126483,5.54163416,200.47,200.29,117.03176291]
[1756689126686,3.55140445,200.44,200.29,117.03176291]
[1756689127093,5.34,200.43,200.29,117.03176291]
[1756689127391,5.34,200.43,200.3,3.55140445]
[1756689128188,5.34,200.43,200.29,117.03176291]
[1756689128394,3.55140445,200.41,200.29,117.03176291]
[1756689128887,3.55140445,200.38,200.29,109.65176291]
[1756689129590,44.94,200.39,200.29,109.65176291]
[1756689129790,44.94,200.38,200.29,109.65176291]
[1756689129986,44.94,200.38,200.24,7.48]
[1756689130191,3.55140445,200.36,200.21,3.55140445]
[1756689130393,3.55140445,200.36,200.2,7.48]
[1756689130590,9.6,200.35,200.2,7.48]
[1756689131094,9.6,200.35,200.22,7.48]
[1756689133993,14.06,200.34,200.22,7.48]
[1756689137493,9.09303861,200.39,200.22,7.48]
[1756689137690,9.09303861,200.39,200.24,3.55140445]
[1756689137994,11.18086435,200.38,200.26,2.22086435]
[1756689138196,11.18086435,200.38,200.2,2.22086435]
[1756689138197,13.18,200.38,200.29,2.22086435]
[1756689138596,2.22086435,200.41,200.3,7.48]
[1756689138800,44.68,200.4,200.31,4.60341329]
[1756689139100,44.68,200.4,200.32,4.60341329]
[1756689139297,44.68,200.4,200.33,4.60341329]
[1756689139498,44.68,200.4,200.34,4.60341329]
[1756689139699,44.68,200.4,200.35,4.60341329]
[1756689139895,44.68,200.4,200.31,2.22086435]
[1756689139896,44.68,200.4,200.36,4.60298485]
[1756689140101,44.68,200.4,200.37,4.60298485]
[1756689140398,44.68,200.4,200.38,4.60298485]
[1756689140598,2.22086435,200.38,200.27,2.22086435]
[1756689140797,2.22086435,200.38,200.28,4.57137324]
[1756689140998,2.22086435,200.38,200.29,4.57137324]
[1756689141199,2.22086435,200.38,200.27,2.22086435]
[1756689141200,2.22086435,200.38,200.3,4.57137324]
[1756689141399,2.22086435,200.38,200.31,4.57137324]
[1756689141597,2.22086435,200.38,200.32,4.57137324]
[1756689141798,2.22086435,200.38,200.33,4.57137324]
[1756689142001,48.23365113,200.4,200.34,4.57137324]
[1756689142204,48.23365113,200.4,200.35,4.57137324]
[1756689142407,48.23365113,200.4,200.36,4.57137324]
[1756689142604,48.23365113,200.4,200.37,4.57137324]
[1756689142906,48.23365113,200.4,200.38,4.57137324]
[1756689143195,48.23365113,200.4,200.26,7.48]
[1756689143393,48.23365113,200.4,200.27,4.57733472]
[1756689143594,48.23365113,200.4,200.28,4.57733472]
[1756689143794,48.23365113,200.4,200.29,4.57733472]
[1756689144001,48.23365113,200.4,200.3,4.57733472]
[1756689144192,48.23365113,200.4,200.31,4.57733472]
[1756689144394,48.23365113,200.4,200.32,4.57733472]
[1756689144594,48.23365113,200.4,200.33,4.57733472]
[1756689144797,48.23365113,200.4,200.29,7.48]
[1756689144798,44.68,200.4,200.34,4.57733472]
[1756689144997,3.55365113,200.43,200.35,4.57733472]
[1756689145200,3.55365113,200.43,200.36,4.57733472]
[1756689145400,94.2,200.42,200.37,4.57733472]
[1756689145696,126.92,200.41,200.38,4.57733472]
[1756689145903,126.92,200.41,200.39,4.57733472]
[1756689146103,126.92,200.41,200.4,4.57733472]
[1756689149010,127.42,200.41,200.4,4.57733472]
[1756689149208,127.42,200.41,200.28,7.48]
[1756689149408,126.92,200.41,200.29,4.57341632]
[1756689149609,126.92,200.41,200.3,4.57341632]
[1756689149808,126.92,200.41,200.31,4.57341632]
[1756689150008,126.92,200.41,200.32,4.57341632]
[1756689150307,126.92,200.41,200.33,4.57341632]
[1756689150503,3.55365113,200.4,200.34,4.5746864]
[1756689150707,3.55365113,200.4,200.35,4.5746864]
[1756689150904,5.54163416,200.39,200.36,4.5746864]
[1756689151110,3.55365113,200.37,200.23,7.48]
[1756689151309,3.55365113,200.37,200.24,4.57547165]
[1756689151511,5.54163416,200.4,200.26,7.48]
[1756689151705,24.48,200.36,200.27,4.57547165]
[1756689151915,24.48,200.36,200.26,7.48]
[1756689156815,71.74,200.35,200.26,7.48]
[1756689157518,114.32,200.35,200.27,7.48]
[1756689160616,126.9,200.37,200.27,7.48]
[1756689163723,126.9,200.37,200.22,11.93317487]
[1756689163910,3.55365113,200.35,200.22,7.83]
[1756689164110,2.22234672,200.31,200.22,7.83]
[1756689164715,2.22234672,200.34,200.22,7.83]
[1756689165217,43.18,200.33,200.22,7.83]
[1756689168924,2.22234672,200.34,200.22,7.83]
[1756689169125,5.54163416,200.37,200.24,2.22234672]
[1756689169328,2.22234672,200.35,200.25,7.83]
[1756689170131,88.66,200.36,200.25,7.83]
[1756689170429,88.66,200.36,200.28,7.83]
[1756689170923,88.66,200.36,200.3,2.22234672]
[1756689173527,88.66,200.36,200.28,7.83]
[1756689173922,2.22234672,200.38,200.28,7.83]
[1756689174130,41.12,200.39,200.3,7.83]
[1756689174923,2.22234672,200.42,200.3,7.83]
[1756689175130,126.86,200.41,200.3,10.05234672]
[1756689175529,2.22234672,200.42,200.3,10.05234672]
[1756689175732,126.86,200.41,200.3,10.05234672]
[1756689176127,335.52,200.43,200.34,7.83]
[1756689176532,335.52,200.43,200.36,2.22234672]
[1756689176725,335.52,200.43,200.34,7.83]
[1756689176932,337.74234672,200.43,200.33,2.22234672]
[1756689178132,126.86,200.42,200.33,2.22234672]
[1756689179434,2.22234672,200.4,200.3,2.22234672]
[1756689179634,2.22234672,200.4,200.28,10.05234672]
[1756689180032,2.22234672,200.4,200.31,2.22234672]
[1756689180333,129.06234672,200.4,200.31,2.22234672]
[1756689181634,129.06234672,200.4,200.29,7.83]
[1756689181833,2.22234672,200.4,200.29,7.83]
[1756689182031,335.52,200.43,200.32,7.83]